fUSD/lending_fUSD_20250720
["ID","MTS","AMOUNT","RATE_DAILY","PERIOD"]
[373384028,1752981039655,-1032.0273786,0.00019171,2]
[373384030,1752981039664,-500.0,0.00019173,2]
[373384032,1752981039674,-500.0,0.00019173,2]
[373384033,1752981039683,-151.0,0.00019174,2]
[373384035,1752981039692,-157.941427,0.00019174,2]
[373384037,1752981039701,-151.0,0.00019174,2]
[373384039,1752981039711,-151.0,0.00019174,2]
[373384041,1752981039721,-151.0,0.00019174,2]
[373384043,1752981039730,-163.613783,0.00019174,2]
[373384045,1752981039739,-155.821412,0.00019174,2]
[373384047,1752981039748,-151.0,0.00019174,2]
[373384049,1752981039758,-152.813094,0.00019174,2]
[373384052,1752981039768,-209.369546,0.00019174,2]
[373384053,1752981039777,-151.0,0.00019174,2]
[373384055,1752981039786,-151.0,0.00019174,2]
[373384057,1752981039795,-151.0,0.00019174,2]
[373384059,1752981039804,-153.230721,0.00019174,2]
[373384061,1752981039818,-151.0,0.00019174,2]
[373384063,1752981039832,-152.43634,0.00019174,2]
[373384066,1752981039844,-151.0,0.00019174,2]
[373384067,1752981039853,-151.0,0.00019174,2]
[373384070,1752981039862,-151.0,0.00019174,2]
[373384072,1752981039872,-151.0,0.00019174,2]
[373384074,1752981039881,-151.0,0.00019174,2]
[373384076,1752981039890,-152.161808,0.00019174,2]
[373384078,1752981039899,-151.0,0.00019174,2]
[373384080,1752981039909,-151.0,0.00019174,2]
[373384082,1752981039918,-151.634759,0.00019174,2]
[373384084,1752981039927,-151.0,0.00019174,2]
[373384086,1752981039936,-151.0,0.00019174,2]
[373384088,1752981039946,-151.0,0.00019174,2]
[373384090,1752981039955,-151.0,0.00019174,2]
[373384092,1752981039964,-151.0,0.00019174,2]
[373384094,1752981039973,-151.0,0.00019174,2]
[373384096,1752981039982,-500.0,0.00019175,2]
[373384097,1752981039991,-534.94332228,0.00019175,2]
[373384099,1752981040001,-392.07175152,0.00019175,2]
[373384101,1752981040010,-371.54714162,0.00019175,2]
[373384103,1752981040019,-151.0,0.00019176,2]
[373384105,1752981040028,-151.0,0.00019176,2]
[373384107,1752981040038,-11519.70546739,0.00019176,2]
[373384109,1752981040047,-44744.09502308,0.00019177,2]
[373384123,1752981040170,-670.69649985,0.00019177,2]
[373384125,1752981040181,-590.3870176,0.00019177,2]
[373384129,1752981040209,-8041.43782,0.00019177,2]
[373384652,1752981045689,-358.31199978,0.00019,2]
[373384662,1752981045778,-250.0,0.00019,2]
[373384674,1752981045885,-432.83336303,0.00019,2]
[373384686,1752981045991,-2890.33831613,0.00019,2]
[373385089,1752981425112,308.14,0.0002501,120]
[373385090,1752981439527,315.15927901,0.000211,28]
[373385091,1752981445263,150.0,0.00023,30]
[373385099,1752981627769,259.54,0.00013699,2]
[373385106,1752981765780,156.34,0.00017846,7]
[373385111,1752981955098,27874.04041817,6.94e-05,2]
[373385112,1752981956396,1973.66,0.0001601,10]
[373385113,1752981966516,9042.00612807,0.00015,2]
[373385114,1752981969640,7026.34,0.0001501,10]
[373385116,1752981989719,158.45522503,0.00015,2]
[373385117,1752982027874,331.904352,7.945e-05,2]
[373385118,1752982029894,7152.72559454,0.00015,2]
[373385119,1752982033236,10068.95412327,0.00015,2]
[373385123,1752982072272,824.79672728,0.00015,20]
[373385125,1752982095008,300.32479096,0.000125,2]
[373385127,1752982102862,1887.80686246,0.0001,2]
[373385128,1752982104702,382.7961862,7.888e-05,2]
[373385129,1752982111561,218.8218249,0.0001,2]
[373385130,1752982114863,2672.99840785,0.0001,2]
[373385131,1752982117660,262.21063926,0.000107,2]
[373385133,1752982121622,1738.60050249,0.00010136,2]
[373385134,1752982121915,43067.09107607,0.00013368,2]
[373385149,1752982231748,-308.77577485,0.000154,2]
[373385150,1752982231763,-32.71347454,0.000154,2]
[373385151,1752982231773,-302.98843981,0.00016059,2]
[373385152,1752982231784,-482.23439295,0.00016059,2]
[373385153,1752982231806,-12.48722444,0.00016059,2]
[373385154,1752982231816,-797.71005719,0.00016086,2]
[373385155,1752982231825,-278.168921,0.00016159,2]
[373385156,1752982231837,-163.3103345,0.00016241,2]
[373385157,1752982231847,-374.681,0.00016469,2]
[373385158,1752982231856,-300.0,0.0001694,2]
[373385159,1752982231866,-1200.0,0.00016999,2]
[373385160,1752982231875,-365.0,0.00016999,2]
[373385161,1752982231884,-1433.34076012,0.00017,2]
[373385162,1752982231895,-3474.95231361,0.00017,2]
[373385163,1752982231916,-297.27958934,0.00017,2]
[373385164,1752982231941,-617.9141118,0.00017,2]
[373385165,1752982231952,-2105.38685513,0.00017,2]
[373385166,1752982231985,-451.66398266,0.00017,2]
[373385167,1752982231996,-283.36167208,0.00017,2]
[373385184,1752982237591,-797.71005719,0.00016114,2]
[373385185,1752982237601,-797.71005719,0.00016141,2]
[373385186,1752982237610,-250.0,0.00016911,2]
[373385187,1752982237619,-675.4178521,0.00017,2]
[373385188,1752982237750,-462.45588772,0.00017,2]
[373385189,1752982237762,-545.08918823,0.00017,2]
[373385190,1752982237773,-6764.44975905,0.00017,2]
[373385191,1752982237859,-41326.14729109,0.00017,2]
[373385192,1752982237913,-433.44604122,0.00017,2]
[373385369,1752982239768,-547.03466666,0.00017,2]
[373385381,1752982239874,-6135.81092133,0.00017,2]
[373385388,1752982239933,-266.6244499,0.00017,2]
[373385395,1752982239985,-13105.87732019,0.00017,2]
[373385435,1752982240349,-7682.59510668,0.00017,2]
[373385437,1752982240358,-443.0,0.000175,2]
[373385439,1752982240368,-167.5,0.00017514,2]
[373385441,1752982240378,-724.11,0.00017523,2]
[373385443,1752982240387,-159.74061731,0.00017532,2]
[373385445,1752982240397,-160.28946207,0.00017532,2]
[373385447,1752982240408,-155.60250613,0.00017532,2]
[373385449,1752982240418,-158.15574996,0.00017532,2]
[373385450,1752982240427,-152.69271144,0.00017532,2]
[373385453,1752982240436,-151.09014063,0.00017532,2]
[373385454,1752982240445,-509.0,0.00017728,2]
[373385457,1752982240455,-1865.99,0.0001777,2]
[373385459,1752982240464,-250.0,0.00017794,2]
[373385461,1752982240474,-200.83,0.0001785,2]
[373385462,1752982240486,-500.0,0.00017878,2]
[373385464,1752982240496,-500.0,0.00017878,2]
[373385466,1752982240505,-500.0,0.00017878,2]
[373385468,1752982240514,-500.0,0.00017878,2]
[373385470,1752982240525,-500.0,0.00017878,2]
[373385472,1752982240534,-500.0,0.00017878,2]
[373385474,1752982240543,-500.0,0.00017878,2]
[373385476,1752982240552,-500.0,0.00017878,2]
[373385478,1752982240563,-151.0,0.00017878,2]
[373385480,1752982240573,-500.0,0.00017878,2]
[373385482,1752982240582,-298.84463671,0.00017878,2]
[373385484,1752982240592,-23900.0,0.00017889,2]
[373385486,1752982240601,-219.36113253,0.000179,2]
[373385488,1752982240611,-1000.0,0.00017909,2]
[373385490,1752982240620,-151.62,0.00017945,2]
[373385493,1752982240630,-1161.01992887,0.00018,2]
[373385495,1752982240640,-219.36113247,0.00018233,2]
[373385497,1752982240650,-176.68,0.00018257,2]
[373385499,1752982240661,-207.4,0.00018288,2]
[373385501,1752982240670,-210.15,0.00018329,2]
[373385503,1752982240679,-465.17,0.00018356,2]
[373385505,1752982240688,-743.49,0.00018356,2]
[373385507,1752982240697,-465.17,0.00018356,2]
[373385509,1752982240706,-465.17,0.00018356,2]
[373385511,1752982240716,-465.17,0.00018356,2]
[373385513,1752982240725,-169.3,0.00018356,2]
[373385515,1752982240734,-172.2,0.00018552,2]
[373385517,1752982240743,-150.0,0.00018552,2]
[373385519,1752982240752,-1174.6,0.00018552,2]
[373385520,1752982240761,-150.0,0.00018552,2]
[373385522,1752982240771,-150.0,0.00018552,2]
[373385525,1752982240784,-301.73,0.00018552,2]
[373385527,1752982240796,-150.0,0.00018552,2]
[373385529,1752982240805,-172.2,0.00018552,2]
[373385531,1752982240815,-150.0,0.00018552,2]
[373385533,1752982240825,-150.0,0.00018552,2]
[373385535,1752982240834,-458.63,0.00018552,2]
[373385537,1752982240844,-150.0,0.00018552,2]
[373385539,1752982240853,-172.2,0.00018552,2]
[373385541,1752982240863,-172.2,0.00018552,2]
[373385543,1752982240872,-1174.6,0.00018552,2]
[373385545,1752982240882,-458.63,0.00018552,2]
[373385547,1752982240892,-457.55,0.00018552,2]
[373385549,1752982240901,-343.6,0.00018552,2]
[373385552,1752982240912,-382.29,0.00018552,2]
[373385554,1752982240922,-1174.6,0.00018552,2]
[373385556,1752982240932,-1174.6,0.00018552,2]
[373385558,1752982240941,-164.77,0.00018552,2]
[373385560,1752982240951,-357.65,0.00018552,2]
[373385562,1752982240960,-219.36113247,0.00018567,2]
[373385564,1752982240969,-172.2,0.00018578,2]
[373385566,1752982240979,-150.0,0.00018578,2]
[373385568,1752982240988,-150.0,0.00018578,2]
[373385570,1752982240998,-150.0,0.00018578,2]
[373385572,1752982241007,-458.63,0.00018578,2]
[373385574,1752982241017,-1680.0,0.00018659,2]
[373385576,1752982241026,-168.28,0.00018684,2]
[373385578,1752982241036,-944.0,0.000187,2]
[373385580,1752982241045,-498.0,0.00018756,2]
[373385582,1752982241056,-434.0,0.0001878,2]
[373385584,1752982241066,-498.0,0.00018844,2]
[373385586,1752982241076,-219.36113247,0.000189,2]
[373385588,1752982241085,-553.329524,0.00018915,2]
[373385590,1752982241095,-156.82338087,0.00018977,2]
[373385593,1752982241105,-1068.51632106,0.00019,2]
[373385595,1752982241114,-500.0,0.00019,2]
[373385597,1752982241124,-500.0,0.00019,2]
[373385599,1752982241133,-500.0,0.00019,2]
[373385601,1752982241142,-1143.0,0.00019,2]
[373385603,1752982241151,-154.24800292,0.00019,2]
[373385605,1752982241163,-780.8054036,0.00019001,2]
[373385607,1752982241172,-156.8233808,0.00019013,2]
[373385609,1752982241182,-210.15,0.00019016,2]
[373385611,1752982241191,-150.0,0.00019019,2]
[373385613,1752982241200,-200.0,0.00019024,2]
[373385615,1752982241210,-156.8233808,0.00019049,2]
[373385617,1752982241219,-3100.26832738,0.00019067,2]
[373385619,1752982241229,-187.39094581,0.0001907,2]
[373385621,1752982241238,-6606.5156,0.00019077,2]
[373385623,1752982241247,-807.096,0.00019077,2]
[373385625,1752982241256,-218.75469192,0.00019078,2]
[373385627,1752982241265,-180.36778954,0.00019078,2]
[373385629,1752982241275,-2425.64067351,0.00019078,2]
[373385631,1752982241284,-156.8233808,0.00019084,2]
[373385633,1752982241293,-150.0,0.0001909,2]
[373385635,1752982241303,-1241.4,0.000191,2]
[373385637,1752982241312,-5511.0,0.000191,3]
[373385639,1752982241321,-780.80540351,0.00019101,2]
[373385641,1752982241331,-156.8233808,0.0001912,2]
[373385643,1752982241340,-150.0,0.00019153,2]
[373385645,1752982241349,-156.8233808,0.00019156,2]
[373385647,1752982241358,-4002.65335481,0.00019169,2]
[373385649,1752982241367,-150.0,0.00019169,2]
[373385651,1752982241377,-4394.0,0.00019169,2]
[373385653,1752982241386,-500.0,0.00019169,2]
[373385655,1752982241395,-150.0,0.00019169,2]
[373385657,1752982241404,-200.84072816,0.00019169,2]
[373385659,1752982241416,-500.0,0.00019169,2]
[373385661,1752982241425,-2168.0,0.0001917,2]
[373385663,1752982241434,-500.0,0.0001917,2]
[373385665,1752982241443,-150.0,0.0001917,2]
[373385667,1752982241452,-158.22535961,0.0001917,2]
[373385669,1752982241461,-150.0,0.0001917,2]
[373385671,1752982241475,-1219.0,0.0001917,2]
[373385673,1752982241484,-64975.0653854,0.0001917,2]
[373385675,1752982241493,-1625.4910093,0.0001917,2]
[373385677,1752982241503,-500.0,0.00019173,2]
[373385679,1752982241513,-500.0,0.00019173,2]
[373385681,1752982241523,-150.0,0.00019173,2]
[373385683,1752982241532,-500.0,0.00019173,2]
[373385686,1752982241542,-178.39700075,0.00019173,2]
[373385687,1752982241553,-150.0,0.00019173,2]
[373385690,1752982241563,-150.0,0.00019173,2]
[373385692,1752982241572,-500.0,0.00019173,2]
[373385694,1752982241581,-150.83233926,0.00019173,2]
[373385695,1752982241591,-152.04412336,0.00019173,2]
[373385698,1752982241600,-150.72256414,0.00019173,2]
[373385700,1752982241609,-200.59305685,0.00019173,2]
[373385702,1752982241619,-2425.64067347,0.00019175,2]
[373385704,1752982241628,-151.0,0.00019177,2]
[373385706,1752982241637,-151.0,0.00019177,2]
[373385708,1752982241646,-152.381266,0.00019177,2]
[373385710,1752982241655,-151.0,0.00019177,2]
[373385712,1752982241666,-151.0,0.00019177,2]
[373385713,1752982241677,-212.256258,0.00019177,2]
[373385715,1752982241687,-151.0,0.00019177,2]
[373385718,1752982241696,-151.0,0.00019177,2]
[373385720,1752982241705,-152.215611,0.00019177,2]
[373385722,1752982241715,-151.0,0.00019177,2]
[373385724,1752982241724,-151.0,0.00019177,2]
[373385726,1752982241734,-151.0,0.00019177,2]
[373385728,1752982241743,-151.0,0.00019177,2]
[373385730,1752982241753,-151.0,0.00019177,2]
[373385732,1752982241762,-152.168406,0.00019177,2]
[373385734,1752982241771,-151.703718,0.00019177,2]
[373385736,1752982241780,-288.738271,0.00019177,2]
[373385738,1752982241789,-151.0,0.00019177,2]
[373385740,1752982241798,-151.0,0.00019177,2]
[373385742,1752982241808,-231.937217,0.00019177,2]
[373385744,1752982241817,-190.98537153,0.00019177,2]
[373385746,1752982241826,-151.0,0.00019177,2]
[373385748,1752982241836,-151.0,0.00019177,2]
[373385749,1752982241845,-151.457115,0.00019177,2]
[373385751,1752982241854,-151.0,0.00019177,2]
[373385753,1752982241863,-151.0,0.00019177,2]
[373385755,1752982241873,-151.0,0.00019177,2]
[373385757,1752982241883,-255.87409,0.00019177,2]
[373385759,1752982241892,-446.56092818,0.00019177,2]
[373385762,1752982241902,-200.0,0.00019177,2]
[373385764,1752982241914,-666.0,0.00019177,2]
[373385766,1752982241923,-674.95266371,0.00019177,2]
[373385768,1752982241932,-305.81222925,0.00019177,2]
[373385770,1752982241942,-500.0,0.00019177,2]
[373385771,1752982241952,-649.0,0.00019177,2]
[373385773,1752982241961,-500.0,0.00019177,2]
[373385775,1752982241970,-150.0,0.00019177,2]
[373385777,1752982241979,-500.0,0.00019177,2]
[373385780,1752982241988,-500.0,0.00019177,2]
[373385782,1752982241998,-150.0,0.00019177,2]
[373385784,1752982242007,-2118.75269,0.00019177,2]
[373385786,1752982242017,-151.0,0.00019177,2]
[373385788,1752982242026,-151.0,0.00019177,2]
[373385790,1752982242036,-155.122183,0.00019177,2]
[373385792,1752982242045,-151.638152,0.00019177,2]
[373385794,1752982242055,-300.0,0.00019177,2]
[373385796,1752982242064,-151.0,0.00019177,2]
[373385798,1752982242074,-151.0,0.00019177,2]
[373385800,1752982242083,-151.0,0.00019177,2]
[373385802,1752982242093,-151.0,0.00019177,2]
[373385804,1752982242104,-151.0,0.00019177,2]
[373385806,1752982242114,-151.0,0.00019177,2]
[373385807,1752982242123,-151.0,0.00019177,2]
[373385808,1752982242132,-767.574715,0.00019177,2]
[373385809,1752982242141,-520.74982854,0.00019177,2]
[373385810,1752982242159,-246.82488646,0.00019177,2]
[373385811,1752982242168,-151.0,0.00019177,2]
[373385812,1752982242177,-380.738639,0.00019177,2]
[373385813,1752982242186,-151.0,0.00019177,2]
[373385814,1752982242195,-380.738639,0.00019177,2]
[373385815,1752982242204,-151.0,0.00019177,2]
[373385817,1752982242213,-290.17125819,0.00019177,2]
[373385819,1752982242223,-363.40539278,0.00019177,2]
[373385821,1752982242232,-5759.8527337,0.00019178,2]
[373385823,1752982242241,-1825.81584293,0.00019178,2]
[373385825,1752982242255,-1752.72875,0.00019178,2]
[373385831,1752982242298,-150.0,0.00019,2]
[373385833,1752982242307,-3465.360075,0.00019178,2]
[373385841,1752982242372,-523.49052366,0.00019178,2]
[373385950,1752982243247,-150.0,0.00019,2]
[373385952,1752982243257,-1857.67764251,0.00019178,2]
[373385955,1752982243267,-337.75415455,0.00019178,2]
[373385961,1752982243323,-6588.65634626,0.00019178,2]
[373385967,1752982243390,-181474.17389395,0.00019178,2]
[373385969,1752982243400,-151.0,0.00019178,2]
[373385971,1752982243409,-153.601356,0.00019178,2]
[373385972,1752982243419,-151.0,0.00019178,2]
[373385974,1752982243428,-151.0,0.00019178,2]
[373385976,1752982243438,-152.612543,0.00019178,2]
[373385978,1752982243447,-151.0,0.00019178,2]
[373385979,1752982243456,-151.0,0.00019178,2]
[373385981,1752982243465,-151.0,0.00019178,2]
[373385983,1752982243475,-151.0,0.00019178,2]
[373385985,1752982243488,-151.0,0.00019178,2]
[373385986,1752982243497,-151.0,0.00019178,2]
[373385988,1752982243506,-151.0,0.00019178,2]
[373385990,1752982243518,-151.0,0.00019178,2]
[373385992,1752982243528,-151.0,0.00019178,2]
[373385994,1752982243537,-151.0,0.00019178,2]
[373385996,1752982243546,-190.473392,0.00019178,2]
[373385997,1752982243555,-480.0,0.00019178,2]
[373385999,1752982243566,-151.0,0.00019178,2]
[373386001,1752982243576,-151.0,0.00019178,2]
[373386003,1752982243585,-151.0,0.00019178,2]
[373386004,1752982243594,-280.66287,0.00019178,2]
[373386006,1752982243603,-480.0,0.00019178,2]
[373386008,1752982243612,-525.15253256,0.00019178,2]
[373386010,1752982243621,-480.0,0.00019178,2]
[373386012,1752982243631,-481.95822708,0.00019178,2]
[373386014,1752982243640,-205.34569744,0.00019178,2]
[373386015,1752982243649,-480.0,0.00019178,2]
[373386017,1752982243659,-510.5911489,0.00019178,2]
[373386019,1752982243668,-482.07527362,0.00019178,2]
[373386021,1752982243678,-481.7487032,0.00019178,2]
[373386022,1752982243687,-500.0,0.00019178,2]
[373386024,1752982243696,-480.0,0.00019178,2]
[373386026,1752982243705,-461.37275023,0.00019178,2]
[373386027,1752982243715,-481.55862504,0.00019178,2]
[373386029,1752982243725,-482.15390717,0.00019178,2]
[373386031,1752982243734,-481.25197495,0.00019178,2]
[373386033,1752982243743,-247.96217423,0.00019178,2]
[373386035,1752982243753,-482.81126179,0.00019178,2]
[373386036,1752982243762,-493.73888301,0.00019178,2]
[373386038,1752982243771,-482.8694268,0.00019178,2]
[373386040,1752982243781,-297.9486426,0.00019178,2]
[373386042,1752982243790,-480.0,0.00019178,2]
[373386044,1752982243799,-480.0,0.00019178,2]
[373386045,1752982243808,-445.46746039,0.00019178,2]
[373386047,1752982243817,-151.0,0.00019178,2]
[373386049,1752982243827,-151.0,0.00019178,2]
[373386051,1752982243837,-151.0,0.00019178,2]
[373386053,1752982243846,-151.0,0.00019178,2]
[373386054,1752982243855,-482.36559053,0.00019178,2]
[373386056,1752982243866,-463.27444517,0.00019178,2]
[373386058,1752982243875,-482.08574392,0.00019178,2]
[373386060,1752982243884,-483.0077408,0.00019178,2]
[373386062,1752982243893,-461.03041532,0.00019178,2]
[373386064,1752982243903,-514.82622158,0.00019178,2]
[373386065,1752982243919,-151.640935,0.00019178,2]
[373386067,1752982243928,-151.0,0.00019178,2]
[373386069,1752982243938,-157.465076,0.00019178,2]
[373386071,1752982243946,-152.234343,0.00019178,2]
[373386073,1752982243955,-185.185486,0.00019178,2]
[373386075,1752982243965,-151.0,0.00019178,2]
[373386077,1752982243974,-480.0,0.00019178,2]
[373386078,1752982243983,-520.0,0.00019178,2]
[373386080,1752982243992,-152.350924,0.00019178,2]
[373386082,1752982244001,-480.0,0.00019178,2]
[373386084,1752982244010,-480.0,0.00019178,2]
[373386086,1752982244019,-151.0,0.00019178,2]
[373386088,1752982244028,-151.360796,0.00019178,2]
[373386089,1752982244038,-151.0,0.00019178,2]
[373386091,1752982244047,-151.0,0.00019178,2]
[373386093,1752982244056,-151.0,0.00019178,2]
[373386095,1752982244065,-480.0,0.00019178,2]
[373386097,1752982244074,-480.0,0.00019178,2]
[373386099,1752982244084,-485.646198,0.00019178,2]
[373386101,1752982244093,-480.0,0.00019178,2]
[373386102,1752982244102,-480.0,0.00019178,2]
[373386104,1752982244111,-480.0,0.00019178,2]
[373386106,1752982244120,-358.25204546,0.00019178,2]
[373386108,1752982244129,-480.0,0.00019178,2]
[373386110,1752982244138,-152.30053,0.00019178,2]
[373386112,1752982244147,-151.0,0.00019178,2]
[373386113,1752982244157,-151.0,0.00019178,2]
[373386115,1752982244167,-159.755394,0.00019178,2]
[373386117,1752982244176,-151.0,0.00019178,2]
[373386119,1752982244186,-480.0,0.00019178,2]
[373386121,1752982244195,-152.840761,0.00019178,2]
[373386123,1752982244204,-480.0,0.00019178,2]
[373386125,1752982244213,-483.37172497,0.00019178,2]
[373386126,1752982244222,-522.07,0.00019178,2]
[373386128,1752982244231,-480.0,0.00019178,2]
[373386130,1752982244241,-506.76274484,0.00019178,2]
[373386132,1752982244250,-151.359587,0.00019178,2]
[373386134,1752982244259,-480.0,0.00019178,2]
[373386136,1752982244268,-480.0,0.00019178,2]
[373386137,1752982244277,-404.48443863,0.00019178,2]
[373386139,1752982244286,-152.931892,0.00019178,2]
[373386141,1752982244296,-500.02290328,0.00019178,2]
[373386143,1752982244305,-523.78726682,0.00019178,2]
[373386145,1752982244314,-480.0,0.00019178,2]
[373386147,1752982244323,-151.0,0.00019178,2]
[373386149,1752982244332,-511.64674387,0.00019178,2]
[373386150,1752982244341,-502.03882251,0.00019178,2]
[373386152,1752982244350,-480.0,0.00019178,2]
[373386154,1752982244359,-151.0,0.00019178,2]
[373386156,1752982244369,-518.32995256,0.00019178,2]
[373386158,1752982244377,-488.86730803,0.00019178,2]
[373386160,1752982244387,-250.0,0.00019178,2]
[373386162,1752982244396,-313.75622519,0.00019178,2]
[373386163,1752982244406,-151.0,0.00019178,2]
[373386165,1752982244416,-513.75453371,0.00019178,2]
[373386167,1752982244425,-516.98833646,0.00019178,2]
[373386169,1752982244434,-480.0,0.00019178,2]
[373386171,1752982244443,-151.0,0.00019178,2]
[373386173,1752982244452,-151.0,0.00019178,2]
[373386175,1752982244461,-151.0,0.00019178,2]
[373386176,1752982244476,-465.44609335,0.00019178,2]
[373386178,1752982244490,-300.230603,0.00019178,2]
[373386180,1752982244499,-480.0,0.00019178,2]
[373386182,1752982244509,-511.88372009,0.00019178,2]
[373386184,1752982244519,-460.0,0.00019178,2]
[373386185,1752982244528,-201.75552,0.00019178,2]
[373386187,1752982244537,-480.0,0.00019178,2]
[373386189,1752982244546,-465.15267673,0.00019178,2]
[373386191,1752982244556,-500.0,0.00019178,2]
[373386193,1752982244573,-151.0,0.00019178,2]
[373386195,1752982244583,-151.0,0.00019178,2]
[373386197,1752982244592,-151.0,0.00019178,2]
[373386198,1752982244601,-153.113027,0.00019178,2]
[373386200,1752982244610,-511.24121201,0.00019178,2]
[373386202,1752982244619,-508.78852565,0.00019178,2]
[373386204,1752982244629,-340.37621948,0.00019178,2]
[373386205,1752982244638,-489.41127788,0.00019178,2]
[373386206,1752982244648,-516.5742083,0.00019178,2]
[373386207,1752982244657,-151.0,0.00019178,2]
[373386208,1752982244667,-227.035988,0.00019178,2]
[373386209,1752982244676,-511.03360436,0.00019178,2]
[373386210,1752982244685,-506.19033322,0.00019178,2]
[373386211,1752982244695,-468.44448348,0.00019178,2]
[373386212,1752982244704,-532.46089377,0.00019178,2]
[373386213,1752982244714,-151.0,0.00019178,2]
[373386214,1752982244723,-569.49841842,0.00019178,2]
[373386215,1752982244733,-500.0,0.00019178,2]
[373386216,1752982244743,-500.0,0.00019178,2]
[373386217,1752982244753,-480.0,0.00019178,2]
[373386219,1752982244762,-151.0,0.00019178,2]
[373386220,1752982244772,-495.87274877,0.00019178,2]
[373386222,1752982244782,-480.0,0.00019178,2]
[373386224,1752982244796,-506.52603113,0.00019178,2]
[373386226,1752982244805,-509.08338202,0.00019178,2]
[373386228,1752982244814,-500.0,0.00019178,2]
[373386230,1752982244823,-480.0,0.00019178,2]
[373386232,1752982244832,-489.06395518,0.00019178,2]
[373386234,1752982244842,-500.0,0.00019178,2]
[373386236,1752982244851,-363.28161736,0.00019178,2]
[373386238,1752982244860,-540.01373424,0.00019178,2]
[373386240,1752982244870,-493.42972161,0.00019178,2]
[373386242,1752982244879,-500.0,0.00019178,2]
[373386244,1752982244889,-480.0,0.00019178,2]
[373386246,1752982244898,-151.0,0.00019178,2]
[373386248,1752982244907,-151.966136,0.00019178,2]
[373386250,1752982244917,-395.11883357,0.00019178,2]
[373386252,1752982244927,-508.38520644,0.00019178,2]
[373386254,1752982244935,-480.0,0.00019178,2]
[373386256,1752982244944,-151.0,0.00019178,2]
[373386258,1752982244953,-151.0,0.00019178,2]
[373386260,1752982244962,-151.0,0.00019178,2]
[373386262,1752982244971,-151.0,0.00019178,2]
[373386264,1752982244980,-151.0,0.00019178,2]
[373386266,1752982244989,-151.0,0.00019178,2]
[373386268,1752982244998,-539.89555063,0.00019178,2]
[373386270,1752982245007,-189.618389,0.00019178,2]
[373386272,1752982245017,-504.19265389,0.00019178,2]
[373386274,1752982245026,-480.0,0.00019178,2]
[373386276,1752982245036,-151.0,0.00019178,2]
[373386278,1752982245046,-500.0,0.00019178,2]
[373386280,1752982245055,-500.0,0.00019178,2]
[373386282,1752982245064,-264.80448815,0.00019178,2]
[373386284,1752982245073,-506.86971618,0.00019178,2]
[373386286,1752982245083,-503.83573338,0.00019178,2]
[373386288,1752982245092,-513.93893768,0.00019178,2]
[373386290,1752982245101,-540.67,0.00019178,2]
[373386292,1752982245110,-509.33892175,0.00019178,2]
[373386294,1752982245119,-500.0,0.00019178,2]
[373386296,1752982245128,-480.0,0.00019178,2]
[373386298,1752982245137,-480.0,0.00019178,2]
[373386300,1752982245147,-480.0,0.00019178,2]
[373386302,1752982245156,-480.0,0.00019178,2]
[373386304,1752982245167,-480.0,0.00019178,2]
[373386306,1752982245176,-503.86292348,0.00019178,2]
[373386308,1752982245186,-155.864108,0.00019178,2]
[373386310,1752982245195,-480.0,0.00019178,2]